Cogmind - Beta 16 @@@ ROGUE MODE // 2025.11.19 @ 02:41:50 Player: guru-sr Result: Smashed by cave-in Performance ------------- Evolutions (0) 0 Regions Visited (2) 400 Robots Destroyed (38) 190 Value Destroyed (896) 896 Prototype IDs (0) 0 Alien Tech Used (0) 0 Bonus (-36) -36 TOTAL SCORE: 1450 Bonus ------- Friendly Fire -36 Cogmind --------- Core Integrity 0/250 Matter 100/300 Energy 234/250 System Corruption 3% Temperature Cool (0) Movement Rolling (145) Ox3 Location -10/Subcaves Parts ------- > --- POWER (1) -------- Ion Engine > --- PROPULSION (2) --- Light Treads Compact Wheel > --- UTILITY (2) ------ High-capacity Storage Unit Seismic Detector > --- WEAPON (2) ------- Subdweller Machine Gun Mining Laser > --- INVENTORY (20) --- Light Nuclear Core Light Treads Spiked Treads High-capacity Matter Pod (200) Visual Processing Unit Improved Terrain Scanner Core Shielding Propulsion Shielding Propulsion Shielding Scrap Shield Particle Gun Subdweller Laser Subdweller Laser Beam Cannon Beam Cannon Grenade Launcher Grenade Launcher Dirty Datajack (20) Datajack Peak State ------------ > --- POWER ------------ Ion Engine > --- PROPULSION ------- Light Treads Subdweller Monowheel > --- UTILITY ---------- High-capacity Storage Unit Seismic Detector > --- WEAPON ----------- Beam Cannon Subdweller Machine Gun > --- INVENTORY -------- Ion Engine Light Nuclear Core Light Treads Light Treads Compact Wheel Improved Heat Sink High-capacity Matter Pod Visual Processing Unit Improved Terrain Scanner Core Shielding Propulsion Shielding Propulsion Shielding Particle Gun Subdweller Laser Beam Cannon Grenade Launcher Grenade Launcher Dirty Datajack Datajack Mining Laser [Rating: 12] Favorites ----------- Power Ion Engine Engine Ion Engine Power Core Light Nuclear Core Propulsion Light Treads Treads Light Treads Wheel Compact Wheel Utility Seismic Detector Device Seismic Detector Storage High-capacity Storage Unit Protection Core Shielding Weapon Beam Cannon Energy Gun Medium Laser Energy Cannon Beam Cannon Ballistic Gun Subdweller Machine Gun Ballistic Cannon Light Cannon Launcher Grenade Launcher Special Weapon Mining Laser Build | -11 -10 -10 ------- Run | Yrd Mat Sub Slots Evolved . | . . . Power . | . . . Propulsion . | . . . Utility . | . . . Weapon . | . . . Parts Attached 28 | 8 9 11 Power 6 | 1 2 3 Engine 5 | 1 1 3 Core 1 | . 1 . Reactor . | . . . Propulsion 6 | 2 . 4 Treads 3 | 2 . 1 Leg . | . . . Wheel 3 | . . 3 Hover . | . . . Flight . | . . . Utility 6 | 3 3 . Device 3 | 2 1 . Storage 2 | 1 1 . Processor . | . . . Hackware . | . . . Protection 1 | . 1 . Artifact . | . . . Weapon 10 | 2 4 4 Energy Gun 1 | . 1 . Energy Cannon 2 | . 1 1 Ballistic Gun 3 | 2 . 1 Ballistic Cannon 1 | . 1 . Launcher 2 | . . 2 Special Weapon 1 | . 1 . Impact Weapon . | . . . Slashing Weapon . | . . . Piercing Weapon . | . . . Special Melee Weapon . | . . . Unidentified Prototypes . | . . . Parts Lost 1 | . . 1 Power . | . . . Propulsion 1 | . . 1 Utility . | . . . Weapon . | . . . Highest Loss Streak 1 | . . 1 To Critical Strikes . | . . . Average Backups 16 | 5 12 19 Power 1 | . 1 1 Propulsion 2 | 1 1 2 Utility 5 | 1 5 6 Weapon 4 | 1 2 6 Tool/Special . | . . . Unused Backups 23 | 1 7 15 Power 2 | . 1 1 Propulsion 4 | 1 2 1 Utility 10 | . 3 7 Weapon 4 | . 1 3 Tool/Special 3 | . . 3 Average Slot Usage (%) 99 | . 99 100 Engine 11 | . 13 10 Core 2 | . . 3 Treads 19 | . 27 14 Wheel 8 | . . 13 Device 13 | . 13 13 Storage 14 | . 14 14 Energy Gun 4 | . 11 . Energy Cannon 11 | . 11 11 Ballistic Gun 7 | . 2 10 Ballistic Cannon 1 | . 1 2 Special Weapon 2 | . . 3 Peak Build Rating 12 | 8 11 12 Average Rating 9 | 6 8 11 On Entrance 6 | . 8 11 Avg Prop Armor Cover (%) 12 | . . 12 Naked Turns . | . . . Heaviest Build 53 | 12 52 53 Greatest Support 40 | 40 40 40 Greatest Overweight (x) 3 | . 1 3 Average Overweight (x) 2 | . . 2 Largest Inventory Capacity 20 | 8 20 20 Average Capacity 18 | 7 17 20 Most Carried 20 | 8 20 20 Average Carried 16 | 6 12 19 Final Capacity 20 | 8 20 20 Final Carried 20 | 8 20 20 Class Distribution -------------------- 67% | Mutant 32% | Scavenger-Mutant Dominant Class ---------------- Mutant | -10/Materials Scavenger-Mutant | -10/Subcaves Resources | -11 -10 -10 ----------- Run | Yrd Mat Sub Matter Collected 1335 | 388 556 391 Remotely . | . . . Salvage Created 1287 | 279 853 155 Parts 74 | 21 45 8 Haulers Intercepted 2 | . 2 . Recyclers Shooed . | . . . Parts Field Recycled . | . . . Retrieved Matter . | . . . Parts Self-Destructed 4 | . . 4 Prevented . | . . . Parts Restored . | . . . Kills | -11 -10 -10 ------- Run | Yrd Mat Sub Combat Hostiles Destroyed 19 | . 13 6 Guns 5 | . 4 1 Cannons 10 | . 8 2 AOE 3 | . . 3 Classes Destroyed 8 | 2 4 2 Tunneler 9 | 9 . . Hauler 2 | . 2 . Recycler 3 | 1 2 . Operator 2 | . 2 . Watcher 3 | . 3 . Grunt 13 | . 13 . Artisan 1 | . . 1 Subdweller 6 | . . 6 Best Kill Streak 3 | 2 3 3 Combat Bots Only 3 | . 2 3 Max Kills in Single Turn 2 | 1 1 2 Gunslinging . | . . . Exploded 2 | . . 2 Melee . | . . . Uniques/NPCs Destroyed . | . . . Combat | -11 -10 -10 -------- Run | Yrd Mat Sub Hostile Shots Fired 92 | . 65 27 Missed 25 | . 17 8 Hits 67 | . 48 19 Projectile 67 | . 48 19 Critical Strikes 1 | . . 1 Damage Taken 1286 | . 537 749 Core 306 | . 95 211 Absorbed by Shields . | . . . Redirected to Shielding 12 | . . 12 Regen/Repaired (Parts) 178 | . 178 . Core Remaining (%) 100 | 100 . . Volleys Fired 197 | 27 67 103 Largest 2 | 2 2 2 Hottest 120 | 40 110 120 Shots Fired 300 | 54 124 122 Gun 138 | 54 79 5 Cannon 60 | . 36 24 Launcher 6 | . . 6 Special 96 | . 9 87 Kinetic 95 | 54 29 12 Thermal 199 | . 95 104 Explosive 6 | . . 6 Electromagnetic . | . . . Robot Hit Streak 20 | 20 13 17 Robot Miss Streak 3 | 2 3 2 Penetration Max . | . . . Secondary Targets 1 | . 1 . Max Gunslinging Chain 1 | . 1 . Shots Hit Robots 145 | 35 85 25 Core Hits 63 | 14 32 17 Critical Kills 1 | . 1 . Critical Parts Destroyed 1 | 1 . . Critical Strikes 7 | 1 5 1 Burn 4 | . 4 . Meltdown 1 | . 1 . Destroy 2 | 1 . 1 Melee Attacks . | . . . Impact . | . . . Slashing . | . . . Piercing . | . . . Sneak Attacks . | . . . Combat Hostiles . | . . . Follow-up Attacks . | . . . Damage Inflicted 2610 | 377 1212 1021 Guns 1240 | 377 762 101 Cannons 761 | . 450 311 Explosions 609 | . . 609 Melee . | . . . Ramming . | . . . Kinetic 884 | 377 306 201 Thermal 1117 | . 906 211 Explosive 609 | . . 609 Electromagnetic . | . . . Impact . | . . . Slashing . | . . . Piercing . | . . . Highest Corruption 3 | . 3 3 Average Corruption 2 | . 2 3 Corruption Purged . | . . . Corruption Blocked . | . . . Effects 84 | . 10 74 Message Errors 21 | . . 21 Matter Fused 15 | . 3 12 Heat Flow Errors 13 | . 1 12 Energy Discharges 14 | . 2 12 Data Loss (minor) 13 | . 3 10 Data Loss (major) 2 | . . 2 Misfires 3 | . . 3 Alerts 2 | . . 2 Weapon Failures 1 | . 1 . Overload Shots . | . . . Overflow Damage . | . . . Projectiles . | . . . Explosions . | . . . Melee . | . . . Knockbacks 1 | . . 1 Impact . | . . . Kinetic 1 | . . 1 Secondary . | . . . Self-Inflicted Damage . | . . . Shots . | . . . Rammed . | . . . Targets Rammed . | . . . Kicked . | . . . Crushed . | . . . Highest Temperature 270 | . 270 254 Average Temperature 66 | . 63 82 Received Heat Transfer 432 | . 294 138 Effects 2 | . 2 . Interference 2 | . 2 . Siege Activations . | . . . Martial Activations . | . . . Shielding Activations . | . . . Robots Disrupted . | . . . Combat Hostiles . | . . . Robots Corrupted . | . . . Combat Hostiles . | . . . Parts Fried . | . . . Impact Corruptions . | . . . Robots Melted 2 | . 2 . Combat Hostiles 1 | . 1 . Parts Melted 7 | . 5 2 Heat Transferred 3034 | . 2590 444 Parts Sabotaged . | . . . Parts Stolen . | . . . Parts Stripped . | . . . Power Chain Reactions . | . . . Alert | -11 -10 -10 ------- Run | Yrd Mat Sub Maximum Alert Level . | . . . Low Security (%) 100 | 100 100 . Level 1 . | . . . Level 2 . | . . . Level 3 . | . . . Level 4 . | . . . Level 5 . | . . . High Security . | . . . Max Security . | . . . Peak Influence 120 | 5 120 . Initial . | . . . Average 24 | . 29 . Influence Increases 550 | 50 500 . Destroy 0b10 Robot/C 260 | . 260 . Destroy 0b10 Robot/NC 95 | 50 45 . Destroy Leader 80 | . 80 . Successful Hack 14 | . 14 . Select Force Hacks 30 | . 30 . Disable Machine 15 | . 15 . Destroy Structure 11 | . 11 . Partial Spotted 15 | . 15 . Lose Combat Pursuer 30 | . 30 . Influence Decreases 550 | 50 394 106 Entered New Map 52 | . . 52 Time Decay 498 | 50 394 54 Squads Dispatched 6 | . 6 . Investigation 4 | . 4 . Extermination . | . . . Reinforcement 2 | . 2 . Assault . | . . . Garrison . | . . . Intercept . | . . . Searches Triggered . | . . . Construction Impeded . | . . . Haulers Reinforced . | . . . Active Scanning Responses . | . . . Cargo Convoy Interrupts . | . . . Stealth | -11 -10 -10 --------- Run | Yrd Mat Sub Distress Signals 1 | . 1 . Communications Jammed . | . . . Distress Signals . | . . . Times Spotted 36 | . 22 14 Peak Tracking Total 3 | . 2 3 Tactical Retreats 2 | . 2 . Traps | -11 -10 -10 ------- Run | Yrd Mat Sub Traps Triggered 9 | . 5 4 Indirectly . | . . . Trap Hack Attempts . | . . . Triggered . | . . . Disarmed . | . . . Reprogrammed . | . . . Reused . | . . . Traps Extracted . | . . . Installed . | . . . Triggered . | . . . Machines | -11 -10 -10 ---------- Run | Yrd Mat Sub Machines Disabled 1 | . 1 . Max in Single Turn 1 | . 1 . Machines Repaired . | . . . Machines Dismantled . | . . . Machines Sabotaged . | . . . Overloaded Fab Kills . | . . . Hacking | -11 -10 -10 --------- Run | Yrd Mat Sub Machines Accessed 11 | . 9 2 Terminals 6 | . 6 . Fabricators . | . . . Repair Stations 1 | . 1 . Recycling Units 2 | . 2 . Scanalyzers . | . . . Garrison Access . | . . . Total Hacks 34 | . 29 5 Successful 21 | . 16 5 Failed 13 | . 13 . Catastrophic 1 | . 1 . Database Lockouts . | . . . Manual 21 | . 21 . Terminals 20 | . 20 . Fabricators . | . . . Repair Stations 4 | . 4 . Recycling Units 5 | . 5 . Scanalyzers . | . . . Garrison Access . | . . . Terminal Hacks 11 | . 6 5 Record 4 | . . 4 Robot Analysis 5 | . 5 . Open Door 1 | . . 1 Terminal Index 1 | . 1 . Fabricator Hacks . | . . . Repair Station Hacks 4 | . 4 . Scan Component 2 | . 2 . Repair 2 | . 2 . Recycling Unit Hacks 1 | . 1 . Report Inventory 1 | . 1 . Scanalyzer . | . . . Garrison Access Hacks . | . . . Unauthorized Hacks 5 | . 5 . Terminals 4 | . 4 . Botnet 2 | . 2 . Operators 1 | . 1 . Skim 1 | . 1 . Fabricators . | . . . Repair Stations . | . . . Recycling Units 1 | . 1 . Tunnel 1 | . 1 . Scanalyzers . | . . . Garrison Access . | . . . Data Cores Recovered . | . . . Used . | . . . Hacking Detections 8 | . 8 . Full Trace Events 1 | . 1 . Feedback Events . | . . . Feedback Blocked . | . . . Robot Schematics Acquired . | . . . Robots Built . | . . . Authchips . | . . . Time . | . . . Total Robot Build Rating . | . . . Part Schematics Acquired . | . . . Parts Built . | . . . Authchips . | . . . Time . | . . . Total Part Build Rating . | . . . Part Studies Acquired . | . . . Parts Repaired 2 | . 2 . Time 52 | . 52 . Parts Recycled . | . . . Recycled Matter . | . . . Retrieved Matter . | . . . Retrieved Components . | . . . Parts Scanalyzed . | . . . Part Schematics Acquired . | . . . Parts Damaged . | . . . Bothacking | -11 -10 -10 ------------ Run | Yrd Mat Sub Used RIF Installer . | . . . Robots Hacked . | . . . Non-combat . | . . . Combat . | . . . Robot Hacks Applied . | . . . Relay Couplers Released . | . . . Fabnet Peak Effective % . | . . . Robots Rewired . | . . . Allies Hacked . | . . . Hacks Repelled . | . . . Allies | -11 -10 -10 -------- Run | Yrd Mat Sub Total Allies . | . . . Largest Group . | . . . Highest-Rated Group . | . . . Highest-Rated Ally . | . . . Total Orders . | . . . Ally Attacks . | . . . Total Damage . | . . . Kills . | . . . Allies Corrupted . | . . . Allies Melted . | . . . Intel | -11 -10 -10 ------- Run | Yrd Mat Sub Active Infowar (turns) 6486 | 264 2339 3883 Seismic 6486 | 264 2339 3883 Robot Analysis Total 5 | . 5 . Derelict Logs Recovered 1 | . . 1 Drone Launches . | . . . Drone Recoveries . | . . . Exploration | -11 -10 -10 ------------- Run | Yrd Mat Sub Turns Passed 6860 | 509 2361 3990 Spaces Moved 3310 | 246 844 2220 Core 5 | 5 . . Treads 1105 | 241 844 20 Legs . | . . . Wheels 2200 | . . 2200 Hover . | . . . Flight . | . . . Fastest Speed 50 | 50 160 130 Average Speed 163 | 157 220 141 Slowest Speed 240 | 160 240 240 Overloaded Moves . | . . . Propulsion Burnouts . | . . . Robots Hopped . | . . . Potential Cave-ins 17 | . . 17 Cave-ins Triggered 1 | . . 1 Exploration Rate (%) 59 | 10 97 71 Regions Visited 2 Branch Regions 1 Pre-discovered Areas 1 | . 1 . Known Exits Taken . | . . . Unknown Exits Taken 2 | 1 1 . Scrap Searched . | . . . Spaces Dug 52 | . 8 44 Terrain Destroyed 79 | . 8 71 Melee . | . . . Projectile 52 | . 8 44 AOE 27 | . . 27 Terrain Rammed . | . . . Walls Destroyed . | . . . Machines Disabled . | . . . Actions | -11 -10 -10 --------- Run | Yrd Mat Sub Total 4260 | 315 1197 2748 Wait 620 | 25 226 369 Move 3308 | 245 843 2220 Hop . | . . . Pick Up 38 | 9 22 7 Fast Attach 13 | 7 4 2 Attach 3 | . . 3 Detach . | . . . Swap 57 | 1 21 35 Drop 24 | 1 14 9 Fire 197 | 27 67 103 Melee . | . . . Ram . | . . . Kick . | . . . Crush . | . . . Escape Stasis . | . . . Rewire . | . . . Trap . | . . . Miscellaneous . | . . . Route ------- -11/Scrapyard -10/Materials (discovered 6 exits: [*Mat x3] / [*Min x2] / *Sub) -10/Subcaves (discovered 2 exits: [*Mat x2]) History --------- Turn | Location | Event 14 | -11/Scrapyard | Discovered new exit (range 15) 510 | -11/Scrapyard | Entered Materials 511 | -10/Materials | Build established: Mutant 841 | -10/Materials | Discovered new exit (range 9) 1033 | -10/Materials | Discovered new exit (range 14) 1513 | -10/Materials | Discovered new exit (range 7) 2039 | -10/Materials | Repaired Lgt. Treads 2066 | -10/Materials | Repaired Lgt. Treads 2212 | -10/Materials | Discovered new exit (range 14) 2527 | -10/Materials | Discovered new exit (range 15) 2851 | -10/Materials | Discovered new exit (range 9) 2871 | -10/Materials | Entered Subcaves 3388 | -10/Subcaves | A swath of the cavern ceiling suddenly collapsed 4258 | -10/Subcaves | A Subdweller sparked back to life 4258 | -10/Subcaves | A Subdweller sparked back to life 4258 | -10/Subcaves | A Subdweller sparked back to life 4261 | -10/Subcaves | Ambushed by Subdweller buried in earth 4264 | -10/Subcaves | Ambushed by Subdweller buried in earth 4265 | -10/Subcaves | Core integrity fell below 50% 4582 | -10/Subcaves | Discovered new exit (range 16) 4677 | -10/Subcaves | Visited Clippyterm 4681 | -10/Subcaves | Learned Factory fabricator intel 4681 | -10/Subcaves | Learned 40 Factory zone layouts 4765 | -10/Subcaves | Discovered new exit (range 13) 4781 | -10/Subcaves | Shifting Twisted Machinery released Riot Gun 4821 | -10/Subcaves | Shifting Twisted Machinery released Sub. Power Source 5018 | -10/Subcaves | Core integrity fell below 20% 5324 | -10/Subcaves | Build established: Scavenger-Mutant 5553 | -10/Subcaves | Shifting Twisted Machinery released Sub. Power Source 5675 | -10/Subcaves | Learned 2 Materials zone layouts 6862 | -10/Subcaves | Crushed by falling debris 6862 | -10/Subcaves | Smashed by cave-in Last Messages --------------- 05938_ KCSGR,6SU|Y4YMLM5O:JH<1IPG,:MTYZC6 06001_ System corrupted: Energy discharge (-60). 06055_ System corrupted: Energy discharge (-77). 06089_ System corrupted: FCS attempts to trigger Beam Cannon. 06089_ System corrupted: Beam Cannon misfires. 06162_ Acquired Scrap Shield. 06187_ System corrupted: Heat flow error (+294). 06223_ T% S5U63XK:WXXC|5TKCIOXUDEJ 06256_ System corrupted: Component data lost. 06294_ 6#D=4VEROST|IK9 K/RGPFN 06438_ Acquired 4 matter. 06481_ System corrupted: Heat flow error (+208). 06487_ Acquired 16 matter. 06597_ MZHSKF# IXZY3XR:CL,HPES8IC% 06639_ System corrupted: IFF burst signal emitted. 06728_ System corrupted: Energy discharge (-72). 06762_ System corrupted: Energy discharge (-57). 06781_ System corrupted: Component data lost. 06786_ The unstable cave ceiling collapses. 06862_ Crushed by falling debris. Map ----- +----------------------------------------------------+ | # #??# & ######### #???###???????####?? | | ##### " ####???????# ##?????????????????? | | # ###### " "#??????????# ## #?????????????????? | | #####" " ""#??????????#### #?????????????????? | | """" "###?????????## #?????????????????? | | #""""" < ##???????????# #?????????????????? | | ## #### ##????????????# ##?????????????????? | | ?###??#####?????????????## #??????????????????? | | ????????????????????????#" "#??????????????????? | | ????????????????????????#" "#??????????????????? | | ????????????????????????#" "##?????????????????? | | ????????????????????????#"" "#?????????????????? | | ????????????????????????# " #?????????????????? | | ???????????????????????###"" #?????????????????? | | ??????????????????????## ### #?????????????????? | | ?????????????????????## ##?# #?????????????????? | | ????????????????????## ##??# #?????????????????? | | ???????????????????## ##???## ##?????????????????? | | ??????????????????## ##??????##??????????????????? | | ??????????????????# #???????????????????????????? | | ??????????????????# ##???????????????????????????? | | ??????????????????####???????????????????????????? | | ???????????????????# #???????????????????????????? | | ???????????????????# ##???##?????????????????????? | | ???????????????????## #?## #?????????????????????? | | ????????????????????# ###@#??????????????????????? | | ????????????????????# # ##??????????????????????? | | ????????????????????## ###???????????????????????? | | ######???????????????####????????????????????????? | | # ##??????????????????????????????????????????? | | #%& #??????????????????????????????????????????? | | %%& % #??????????????????????????????????????????? | | & #??????????????????????????????????????????? | | ## & #??????????????????????????????????????????? | | ## ##??????????????????????????????????????????? | | # %#???????????????????????????????????????????? | | #???????????????????????????????????????????? | | ##???????????????????????????????????????????? | | ####????????????????????????????????????????????? | | ##???????????????????????????????????????????????? | | #????????????????????????????????????????????????? | | #????????????????????????????????????????????????? | | #????????????????????????????????????????????????? | | #????????????????????????????????????????????????? | | #????????????????????????????????????????????????? | | #????????????????????????????????????????????????? | | #????????????????????????????????????????????????? | | #????????????????????????????????????????????????? | | #????????????????????????????????????????????????? | | #????????????????????????????????????????????????? | +----------------------------------------------------+ Best States ------------- Heat Dissipation 25 Energy Generation 14 Energy Capacity 250 Matter Stores 300 Matter Capacity 300 Sight Range 16 Terrain Scan Density 10 Core Shielding 20 Evasion (%) 40 Recoil Reduction 2 Item Schematics ----------------- None Robot Schematics ------------------ None Fabricated ------------ Nothing Repaired ---------- Lgt. Treads | 12% | -10/Materials Lgt. Treads | 60% | -10/Materials Studied --------- None Alien Tech Used ----------------- None Achievements -------------- None Challenges ------------ None Game ------ Seed HybridDeflectorNetwork Manual? 0 Play Time 00:55:02 Cumulative 44.0 hours Start 2025.11.19 @ 01:48:23 End 2025.11.19 @ 02:41:50 Sessions 1 Manual Loads 0 Difficulty Rogue Special Mode None Game No. 26 Rogue 26 Adventurer 0 Explorer 0 Win Type - Total 1 Types 1/0/0/0/0/0/0/0/0/0 Lore% 22 Gallery% 27 Achievement% 33 Wizard Run 0 Options --------- Layout 0 ASCII 0 Keyboard 0 Movement Mouse Keybinds 0 Fullscreen 1 Font 18/SmallcapsGlow Map View 76x50 Zoom Use 0% Tactical HUD 1 Map Filters NONE Filters NONE Steam 1 RUN: 3b93e458-1fd2-4ad7-99f0-85f67df93e74